bitfinex-derivatives/quotes_SOLF0:USTF0_20250705
["timestamp","ask_amount","ask_price","bid_price","bid_amount"]
[1751721092142,8.10985846,148.07,148.02,200.1341]
[1751721092344,6.7533,148.04,148.02,200.1341]
[1751721094157,6.7533,148.04,148.02,193.38]
[1751721094947,6.7533,148.04,148.01,6.7544]
[1751721095148,6.7533,148.04,148.02,193.38]
[1751721095849,6.7537,148.03,148.02,193.36]
[1751721096148,6.7537,148.03,148.02,193.34]
[1751721097140,6.7537,148.03,148.0,57.07383594]
[1751721097337,6.7537,148.03,148.01,193.36]
[1751721098452,6.7537,148.03,148.01,200.1146]
[1751721098653,6.7537,148.03,148.02,193.34]
[1751721102750,6.7537,148.03,148.01,2.97175351]
[1751721102938,6.7537,148.03,148.02,193.34]
[1751721105049,6.7536,148.04,148.02,193.34]
[1751721105550,6.7537,148.03,148.02,193.34]
[1751721108554,6.7545,148.02,148.01,193.3]
[1751721108851,6.7545,148.02,148.0,48.65175351]
[1751721109042,6.7545,148.02,148.01,193.3]
[1751721110755,6.7545,148.02,148.0,48.65175351]
[1751721111150,6.7545,148.02,148.0,241.93175351]
[1751721111352,6.7545,148.02,148.0,238.96]
[1751721111551,6.7545,148.02,148.0,241.93175351]
[1751721119071,6.7545,148.02,148.0,248.68675351]
[1751721120675,6.754,148.03,148.0,248.68675351]
[1751721120869,2.97175351,148.05,148.0,45.68]
[1751721121077,15.69281001,148.04,148.01,193.34]
[1751721121276,12.7210565,148.03,148.01,193.34]
[1751721121465,5.62733287,148.02,148.01,193.34]
[1751721121670,6.7546,148.01,148.0,45.68]
[1751721121871,6.7546,148.01,148.0,239.04]
[1751721123878,6.7546,148.01,148.0,193.36]
[1751721124581,2.97175351,148.03,148.0,193.36]
[1751721124782,5.62507467,148.02,148.0,193.36]
[1751721124982,2.97175351,148.03,148.0,193.36]
[1751721125182,6.7546,148.01,148.0,193.36]
[1751721126986,2.97175351,148.05,148.0,203.08685351]
[1751721127189,17.56198743,148.04,148.01,2.97175351]
[1751721127484,12.71772778,148.03,148.01,2.97175351]
[1751721127684,6.754,148.03,148.01,2.97175351]
[1751721127874,6.754,148.03,148.0,203.08685351]
[1751721134189,6.754,148.03,148.01,2.97175351]
[1751721134887,6.7542,148.02,148.01,2.97175351]
[1751721136489,6.7542,148.02,148.01,2.97185722]
[1751721136891,6.7541,148.03,148.01,2.97185722]
[1751721138494,6.7542,148.02,148.01,2.97185722]
[1751721139291,6.7542,148.02,148.0,203.08695722]
[1751721145000,6.7542,148.02,148.0,196.33185722]
[1751721148501,6.7542,148.02,148.0,203.08685722]
[1751721152605,6.7542,148.02,148.0,200.115]
[1751721152807,6.7542,148.02,148.0,193.36]
[1751721153207,6.7546,148.01,148.0,193.36]
[1751721159113,6.7545,148.02,148.0,193.36]
[1751721164019,6.7546,148.01,148.0,193.36]
[1751721169921,6.7546,148.01,147.99,2.97185722]
[1751721170121,6.7546,148.01,148.0,193.2]
[1751721178226,6.32760993,148.05,148.0,193.2]
[1751721178427,17.61017645,148.04,148.01,2.97185722]
[1751721178725,17.61017645,148.03,148.01,2.97185722]
[1751721178925,12.78465966,148.02,148.01,2.97185722]
[1751721179428,12.78465966,148.02,148.01,2.97173372]
[1751721180826,12.78470484,148.02,148.01,2.97173372]
[1751721182630,12.78470484,148.02,148.01,9.72633372]
[1751721183428,10.27984144,148.02,148.01,9.72633372]
[1751721183633,12.78487755,148.02,148.01,9.72633372]
[1751721186332,10.27984144,148.02,148.01,9.72633372]
[1751721186632,12.78574565,148.02,148.01,9.72633372]
[1751721186835,12.78574565,148.02,148.01,2.97173372]
[1751721188931,12.78574565,148.02,148.01,9.72633372]
[1751721189531,5.69980476,148.02,148.01,9.72633372]
[1751721189731,6.753,148.05,148.02,6.7539]
[1751721189932,12.78736291,148.04,148.03,2.97173372]
[1751721190236,14.94135348,148.04,148.03,196.13173372]
[1751721190636,14.94135348,148.04,148.03,193.16]
[1751721191135,6.7533,148.04,148.03,193.16]
[1751721191335,12.42950181,148.04,148.03,193.16]
[1751721192844,5.67620181,148.04,148.03,193.16]
[1751721194137,5.67620181,148.04,148.03,196.13173372]
[1751721197152,6.753,148.05,148.03,196.13173372]
[1751721200154,6.753,148.05,148.03,193.16]
[1751721200454,6.753,148.05,148.03,196.13173372]
[1751721209263,6.753,148.05,148.03,202.88543372]
[1751721209763,6.753,148.05,148.03,196.13173372]
[1751721211866,6.7524,148.06,148.03,202.88533372]
[1751721212068,6.32322088,148.1,148.05,2.97173372]
[1751721212269,6.32322088,148.1,148.03,193.16]
[1751721212270,5.67898694,148.09,148.04,45.6]
[1751721212461,6.7504,148.11,148.08,9.72313372]
[1751721212660,12.79018131,148.1,148.08,193.12]
[1751721212861,54.18772088,148.14,148.08,193.12]
[1751721213061,6.75,148.12,148.09,6.7509]
[1751721213257,5.65302429,148.11,148.09,6.7509]
[1751721213467,47.8645,148.14,148.09,6.7509]
[1751721213668,17.61531741,148.13,148.09,2.97173372]
[1751721213868,12.75347886,148.12,148.09,2.97173372]
[1751721214067,2.97173372,148.13,148.09,2.97173372]
[1751721214260,12.72966361,148.12,148.09,2.97173372]
[1751721214468,2.97173372,148.13,148.09,2.97173372]
[1751721214664,6.7502,148.11,148.09,2.97173372]
[1751721215062,6.7505,148.1,148.09,2.97173372]
[1751721215368,5.63572238,148.1,148.06,196.07173372]
[1751721215569,2.97173372,148.11,148.06,196.07173372]
[1751721215769,8.12544624,148.1,148.06,196.07173372]
[1751721215968,8.12544624,148.1,148.04,45.6]
[1751721215969,2.97173372,148.1,148.05,2.97173372]
[1751721216169,2.97173372,148.08,148.04,48.57173372]
[1751721216362,2.97173372,148.08,148.04,241.75173372]
[1751721216760,6.7522,148.07,148.04,241.75173372]
[1751721218471,6.7522,148.07,148.04,248.50493372]
[1751721221674,6.7526,148.06,148.04,241.75173372]
[1751721229981,6.7521,148.07,148.05,2.97173372]
[1751721230275,6.7521,148.07,148.06,193.16]
[1751721233681,6.7521,148.07,148.06,193.12]
[1751721239886,6.7521,148.07,148.04,9.72483372]
[1751721240086,6.7524,148.06,148.05,193.1]
[1751721241592,6.7524,148.06,148.05,196.07173372]
[1751721242786,6.7521,148.07,148.05,196.07173372]
[1751721243287,2.97173372,148.09,148.05,196.07173372]
[1751721243489,6.7524,148.06,148.05,196.07173372]
[1751721247693,6.7524,148.06,148.05,193.1]
[1751721252293,6.7524,148.06,148.05,196.07173372]
[1751721256195,6.7524,148.06,148.05,193.1]
[1751721256395,6.7521,148.07,148.05,196.07173372]
[1751721258800,9.27258145,148.1,148.05,202.82453372]
[1751721259001,17.58491983,148.09,148.05,202.82453372]
[1751721259200,17.58491983,148.08,148.05,202.82453372]
[1751721259398,17.58491983,148.07,148.05,202.82453372]
[1751721259599,5.64106948,148.06,148.05,202.82453372]
[1751721260098,7.09068534,148.06,148.05,202.82453372]
[1751721260402,8.13403737,148.06,148.05,196.07173372]
[1751721260602,12.73727264,148.06,148.05,196.07173372]
[1751721262407,12.73727264,148.06,148.05,196.0703451]
[1751721269416,12.73727264,148.06,148.05,202.8231451]
[1751721270313,12.73727264,148.06,148.05,196.0703451]
[1751721270612,8.13591747,148.06,148.05,196.0703451]
[1751721270809,12.7498051,148.06,148.05,196.0703451]
[1751721278222,12.7498051,148.06,148.05,193.1]
[1751721281724,7.10318123,148.06,148.05,193.1]
[1751721281932,6.752,148.07,148.05,193.1]
[1751721282227,6.752,148.07,148.05,196.07042256]
[1751721285633,6.752,148.07,148.05,202.82322256]
[1751721286832,6.752,148.07,148.05,196.07042256]
[1751721300543,6.752,148.07,148.05,193.1]
[1751721300745,6.752,148.07,148.05,196.07042256]
[1751721303335,6.7516,148.08,148.05,202.82322256]
[1751721303637,12.72363593,148.07,148.06,2.97007756]
[1751721304645,19.47553593,148.07,148.06,2.97007756]
[1751721305843,16.98867105,148.07,148.06,2.97007756]
[1751721306140,6.7524,148.06,148.05,196.07007756]
[1751721306842,6.7524,148.06,148.05,196.07042301]
[1751721307044,6.7524,148.06,148.05,193.1]
[1751721309947,6.7521,148.07,148.05,196.07042301]
[1751721310346,9.29387482,148.1,148.06,2.97042301]
[1751721310647,17.61699139,148.09,148.06,2.97042301]
[1751721310944,17.61699139,148.08,148.06,2.97042301]
[1751721311141,12.73494549,148.07,148.06,2.97042301]
[1751721311937,12.73494281,148.07,148.06,2.97042301]
[1751721314342,6.7517,148.08,148.06,2.97042301]
[1751721315042,6.751,148.09,148.07,2.97042301]
[1751721315249,63.75124913,148.12,148.08,2.97042301]
[1751721315547,17.59860765,148.11,148.1,2.97042301]
[1751721316549,17.59860765,148.11,148.06,45.58]
[1751721316749,20.56724895,148.1,148.06,48.55042301]
[1751721316944,12.72992499,148.09,148.06,48.55042301]
[1751721317149,5.64617119,148.08,148.06,48.55042301]
[1751721317350,2.97042301,148.1,148.06,48.55042301]
[1751721317550,6.7519,148.07,148.06,2.97042301]
[1751721319452,6.7519,148.07,148.05,196.07042301]
[1751721320652,6.7524,148.06,148.05,193.1]
[1751721320852,12.5246624,148.06,148.05,193.1]
[1751721322752,6.7528,148.05,148.04,2.97042301]
[1751721327356,2.97042301,148.08,148.04,2.97042301]
[1751721327357,6.7525,148.06,148.04,2.97042301]
[1751721329456,6.7525,148.06,148.03,6.7537]
[1751721329660,6.7525,148.06,148.04,196.03042301]
[1751721329853,6.7525,148.06,148.03,6.7537]
[1751721330054,6.7525,148.06,148.04,196.03042301]
[1751721331459,5.75951911,148.05,148.04,196.03042301]
[1751721332159,6.7521,148.07,148.04,196.03042301]
[1751721332359,5.759411,148.06,148.04,196.03042301]
[1751721332659,6.7521,148.07,148.04,196.03042301]
[1751721332861,5.75311814,148.06,148.04,196.03042301]
[1751721333060,6.7521,148.07,148.04,196.03042301]
[1751721333260,5.75300416,148.06,148.04,196.03042301]
[1751721333559,6.7521,148.07,148.04,196.03042301]
[1751721333861,5.75302231,148.06,148.04,196.03042301]
[1751721334059,6.7521,148.07,148.04,196.03042301]
[1751721334259,5.75290635,148.06,148.04,196.03042301]
[1751721334461,6.7521,148.07,148.04,196.03042301]
[1751721334763,2.97042301,148.09,148.04,196.03042301]
[1751721334764,12.50543014,148.06,148.04,196.03042301]
[1751721334961,6.7525,148.06,148.04,196.03042301]
[1751721341359,6.7525,148.06,148.05,2.97042301]
[1751721341664,12.50387479,148.06,148.05,2.97042301]
[1751721348680,12.50387479,148.06,148.04,193.06]
[1751721348881,6.7525,148.06,148.05,2.97042301]
[1751721349080,12.50376167,148.06,148.05,2.97042301]
[1751721350184,12.50376167,148.06,148.04,196.03042301]
[1751721350373,6.7525,148.06,148.04,196.03042301]
[1751721357986,6.7525,148.06,148.04,202.78372301]
[1751721359391,6.7525,148.06,148.04,199.8133]
[1751721359590,6.7525,148.06,148.04,202.78372301]
[1751721362192,6.7517,148.08,148.05,9.72254846]
[1751721362393,6.7517,148.08,148.07,2.96974846]
[1751721362593,24.42417419,148.08,148.07,2.96974846]
[1751721362794,24.42417419,148.08,148.07,2.96960446]
[1751721363897,5.76044083,148.08,148.07,2.96960446]
[1751721364600,6.7508,148.1,148.07,9.72120446]
[1751721364799,6.7508,148.1,148.09,2.96960446]
[1751721364993,24.41043126,148.1,148.09,2.96960446]
[1751721365190,19.5576179,148.1,148.09,2.96960446]
[1751721365392,6.751,148.09,148.08,193.06]
[1751721365693,24.42257028,148.09,148.08,193.06]
[1751721366987,17.67157028,148.09,148.08,193.06]
[1751721368301,17.67415711,148.09,148.08,193.06]
[1751721368696,12.8086419,148.09,148.08,193.06]
[1751721369400,12.82920298,148.09,148.08,193.06]
[1751721375106,19.58020298,148.09,148.08,193.06]
[1751721378310,12.48653767,148.09,148.08,193.06]
[1751721379810,5.73553767,148.09,148.08,193.06]
[1751721381512,5.74556293,148.09,148.08,193.06]
[1751721387316,5.74556293,148.09,148.08,196.02960446]
[1751721389218,5.74556293,148.09,148.08,193.06]
[1751721390321,12.49656293,148.09,148.08,193.06]
[1751721396620,6.7516,148.08,148.05,6.7526]
[1751721396822,2.96960446,148.09,148.04,2.96960446]
[1751721397021,12.85505155,148.08,148.04,2.96960446]
[1751721397220,2.96960446,148.09,148.04,2.96960446]
[1751721397420,6.752,148.07,148.04,9.72260446]
[1751721397620,6.752,148.07,148.05,2.96960446]
[1751721398624,6.7517,148.08,148.06,2.96960446]
[1751721398814,5.74594588,148.07,148.06,2.96960446]
[1751721399425,6.7517,148.08,148.06,2.96960446]
[1751721401931,6.752,148.07,148.06,2.96960446]
[1751721402130,6.752,148.07,148.05,2.96960446]
[1751721402532,6.7524,148.06,148.04,9.72270446]
[1751721403733,6.7521,148.07,148.04,9.72270446]
[1751721406836,6.7521,148.07,148.05,2.96960446]
[1751721407937,6.7521,148.07,148.06,2.96960446]
[1751721408236,12.48998075,148.07,148.06,2.96960446]
[1751721410638,5.73788075,148.07,148.06,2.96960446]
[1751721412439,6.3163211,148.11,148.06,2.96960446]
[1751721412634,12.82366664,148.1,148.08,2.96960446]
[1751721412833,5.7280046,148.09,148.08,2.96960446]
[1751721414432,6.7504,148.11,148.08,9.72110446]
[1751721414636,8.23829207,148.1,148.09,2.96960446]
[1751721415237,5.7272698,148.1,148.09,2.96960446]
[1751721419546,12.4777698,148.1,148.09,2.96960446]
[1751721423651,6.7505,148.1,148.09,2.96960446]
[1751721424852,13.88862556,148.15,148.09,9.72060446]
[1751721425048,13.88862556,148.15,148.1,2.96960446]
[1751721425049,20.76180267,148.14,148.1,2.96960446]
[1751721425252,17.79219821,148.13,148.1,2.96960446]
[1751721425453,6.7502,148.11,148.1,2.96960446]
[1751721425647,12.503431,148.11,148.1,2.96960446]
[1751721427651,12.503431,148.11,148.09,2.96960446]
[1751721427854,6.7502,148.11,148.09,2.96960446]
[1751721428052,6.7502,148.11,148.09,9.72060446]
[1751721429554,6.7502,148.11,148.09,2.96960446]
[1751721432453,6.7502,148.11,148.08,6.7513]
[1751721432658,5.74989853,148.1,148.07,48.52960446]
[1751721432854,2.96960446,148.11,148.07,48.52960446]
[1751721433058,6.7513,148.09,148.07,48.52960446]
[1751721433760,6.7508,148.1,148.07,55.28140446]
[1751721436663,6.7508,148.1,148.08,2.96960446]
[1751721437261,6.7508,148.1,148.07,55.28140446]
[1751721437765,6.7503,148.11,148.08,6.7513]
[1751721437961,2.96960446,148.13,148.09,2.96960446]
[1751721438162,17.80548933,148.12,148.1,2.96960446]
[1751721438464,7.16138111,148.11,148.1,2.96960446]
[1751721439264,6.7499,148.12,148.1,2.96960446]
[1751721439767,6.7499,148.12,148.09,9.72030446]
[1751721439968,6.7499,148.12,148.1,2.96960446]
[1751721440567,6.7501,148.11,148.1,2.96960446]
[1751721440767,6.7501,148.11,148.09,9.72030446]
[1751721441267,6.7499,148.12,148.09,9.72030446]
[1751721442171,4.64235883,148.11,148.09,9.72030446]
[1751721442370,6.7499,148.12,148.09,9.72030446]
[1751721442668,7.16094999,148.11,148.09,9.72030446]
[1751721442871,6.7499,148.12,148.09,9.72030446]
[1751721443070,7.16094999,148.11,148.09,9.72030446]
[1751721443270,6.7499,148.12,148.09,9.72030446]
[1751721443471,7.16141293,148.11,148.09,9.72030446]
[1751721443675,6.7499,148.12,148.09,9.72030446]
[1751721443873,7.16141293,148.11,148.09,9.72030446]
[1751721444170,6.7499,148.12,148.09,9.72030446]
[1751721444361,7.16193937,148.11,148.09,9.72030446]
[1751721444561,6.7499,148.12,148.09,9.72030446]
[1751721444769,7.16193937,148.11,148.09,9.72030446]
[1751721445071,6.7499,148.12,148.09,9.72030446]
[1751721445272,7.16193937,148.11,148.09,9.72030446]
[1751721445572,6.7499,148.12,148.09,9.72030446]
[1751721445772,7.16221057,148.11,148.09,9.72030446]
[1751721445972,6.7499,148.12,148.09,9.72030446]
[1751721446174,7.16221057,148.11,148.09,9.72030446]
[1751721446377,6.7499,148.12,148.09,9.72030446]
[1751721446574,7.16240498,148.11,148.09,9.72030446]
[1751721446769,6.7499,148.12,148.09,9.72030446]
[1751721447074,7.16240498,148.11,148.09,9.72030446]
[1751721447276,6.7499,148.12,148.09,9.72030446]
[1751721447474,7.16262806,148.11,148.09,9.72030446]
[1751721447675,6.7499,148.12,148.09,9.72030446]
[1751721447975,7.16262806,148.11,148.09,9.72030446]
[1751721448276,6.7499,148.12,148.09,9.72030446]
[1751721448476,12.91426511,148.11,148.09,9.72030446]
[1751721448777,6.7499,148.12,148.09,9.72030446]
[1751721448976,12.91432474,148.11,148.09,9.72030446]
[1751721449277,6.7499,148.12,148.09,9.72030446]
[1751721449477,12.91561823,148.11,148.09,9.72030446]
[1751721449779,6.7499,148.12,148.09,9.72030446]
[1751721449969,12.91568668,148.11,148.09,9.72030446]
[1751721450170,6.7499,148.12,148.09,9.72030446]
[1751721450371,12.91688662,148.11,148.09,9.72030446]
[1751721450572,6.7499,148.12,148.09,9.72030446]
[1751721450774,12.91723574,148.11,148.09,9.72030446]
[1751721450973,6.7499,148.12,148.09,9.72030446]
[1751721451170,12.91723574,148.11,148.09,9.72030446]
[1751721451376,6.7499,148.12,148.09,9.72030446]
[1751721451675,12.91900145,148.11,148.09,9.72030446]
[1751721451870,6.7499,148.12,148.09,9.72030446]
[1751721452171,12.91900145,148.11,148.09,9.72030446]
[1751721452470,6.7499,148.12,148.09,9.72030446]
[1751721452669,12.92102591,148.11,148.09,9.72030446]
[1751721452877,6.7499,148.12,148.09,9.72030446]
[1751721453069,12.92102591,148.11,148.1,2.96960446]
[1751721453271,17.83288298,148.11,148.1,2.96960446]
[1751721454184,12.92102591,148.11,148.1,2.96960446]
[1751721454988,12.92102591,148.11,148.09,9.72030446]
[1751721455280,7.17258182,148.1,148.09,9.72030446]
[1751721456183,7.17264959,148.1,148.09,9.72030446]
[1751721457184,12.93306653,148.1,148.09,9.72030446]
[1751721458484,5.76041694,148.1,148.09,9.72030446]
[1751721460184,6.3163211,148.14,148.11,6.7499]
[1751721460381,9.28592556,148.17,148.11,6.7499]
[1751721460585,6.7492,148.13,148.12,2.96960446]
[1751721460884,19.68539994,148.13,148.11,2.96960446]
[1751721461083,6.7492,148.13,148.11,2.96960446]
[1751721468687,6.7492,148.13,148.11,9.71970446]
[1751721477597,6.7492,148.13,148.11,2.96960446]
[1751721478798,6.7492,148.13,148.11,9.71970446]
[1751721480898,2.96960446,148.14,148.07,45.56]
[1751721481098,67.82860244,148.18,148.08,2.96960446]
[1751721481099,2.96960446,148.12,148.08,2.96960446]
[1751721481399,5.7372735,148.11,148.08,2.96903344]
[1751721481601,2.96903344,148.13,148.08,2.96903344]
[1751721481799,17.8477759,148.12,148.08,2.96903344]
[1751721481998,5.73856194,148.11,148.08,2.96903344]
[1751721482201,2.96903344,148.13,148.08,2.96903344]
[1751721482400,17.85834537,148.12,148.08,2.96903344]
[1751721482601,6.7506,148.1,148.08,9.72023344]
[1751721484202,6.7506,148.1,148.08,6.7512]
[1751721485899,6.7511,148.09,148.07,55.28073344]
[1751721486101,6.7511,148.09,148.07,45.56]
[1751721487496,6.7511,148.09,148.07,52.3119]
[1751721489394,6.7511,148.09,148.07,45.56]
[1751721491011,6.7511,148.09,148.07,52.3119]
[1751721494711,6.7511,148.09,148.07,45.56]
[1751721495014,6.7511,148.09,148.07,48.52985539]
[1751721496007,6.7511,148.09,148.07,55.28165539]
[1751721497813,2.3445,148.13,148.08,2.96985539]
[1751721498010,2.3445,148.13,148.07,45.56]
[1751721498011,12.0041082,148.12,148.11,2.96985539]
[1751721499010,12.0041082,148.12,148.11,9.71995539]
[1751721499211,48.50985539,148.16,148.11,9.71995539]
[1751721499514,6.749,148.14,148.12,2.96985539]
[1751721502916,6.7485,148.15,148.12,9.71935539]
[1751721503110,6.7485,148.15,148.13,2.96985539]
[1751721503111,12.81960832,148.14,148.13,2.96985539]
[1751721503310,12.8194956,148.14,148.13,2.96985539]
[1751721504714,7.1202027,148.14,148.13,9.71905539]
[1751721506018,6.7485,148.15,148.13,9.71905539]
[1751721506714,6.7485,148.15,148.13,2.96985539]
[1751721506915,6.7487,148.14,148.12,2.96985539]
[1751721507113,6.7487,148.14,148.1,192.98]
[1751721507114,5.7284988,148.13,148.1,192.98]
[1751721507316,8.69913051,148.12,148.06,2.3969]
[1751721507514,8.69948151,148.11,148.06,241.64985539]
[1751721507711,2.96985539,148.11,148.06,241.64985539]
[1751721508115,2.96985539,148.11,148.06,48.50985539]
[1751721508316,2.96985539,148.11,148.07,2.96985539]
[1751721508516,6.7508,148.1,148.07,9.72145539]
[1751721509721,6.7508,148.1,148.07,6.7516]
[1751721511227,6.7512,148.09,148.06,245.4322]
[1751721511524,4.63972024,148.13,148.06,45.54]
[1751721511717,4.63972024,148.11,148.06,45.54]
[1751721511922,6.7513,148.09,148.06,45.54]
[1751721513525,6.7509,148.1,148.06,45.54]
[1751721513825,13.16458177,148.14,148.07,4.63972024]
[1751721514028,17.70797789,148.13,148.07,4.63972024]
[1751721514223,17.70797789,148.12,148.07,4.63972024]
[1751721514424,12.82693225,148.11,148.07,4.63972024]
[1751721514625,13.16458177,148.14,148.07,4.63972024]
[1751721514927,17.70834251,148.13,148.07,4.63972024]
[1751721515125,6.7503,148.11,148.08,6.7512]
[1751721529749,6.7503,148.11,148.08,9.72009657]
[1751721531748,6.7503,148.11,148.09,2.96889657]
[1751721534051,6.7505,148.1,148.08,9.72009657]
[1751721540453,6.7502,148.11,148.08,202.84009657]
[1751721541352,6.7506,148.1,148.08,202.84009657]
[1751721542956,6.30468177,148.15,148.09,2.96889657]
[1751721543151,12.85245753,148.14,148.11,2.96783685]
[1751721543351,12.85125186,148.13,148.11,193.24]
[1751721543551,6.7494,148.13,148.11,193.24]
[1751721544154,5.71436901,148.12,148.11,193.24]
[1751721545154,12.46396901,148.12,148.1,2.96783685]
[1751721545360,6.7496,148.12,148.11,193.42]
[1751721545658,12.4644377,148.12,148.11,193.42]
[1751721550765,5.7148377,148.12,148.11,193.42]
[1751721551061,5.7148377,148.12,148.11,196.3882691]
[1751721551462,6.7489,148.14,148.11,203.1380691]
[1751721551763,12.91029253,148.13,148.12,2.9682691]
[1751721551965,5.7309178,148.13,148.12,2.9682691]
[1751721552764,6.7489,148.14,148.12,2.9682691]
[1751721553066,6.7489,148.14,148.13,2.9682691]
[1751721553368,12.47871948,148.14,148.13,2.9682691]
[1751721553964,5.72981948,148.14,148.13,2.9682691]
[1751721561267,6.7484,148.15,148.13,2.9682691]
[1751721562168,5.73057743,148.14,148.13,2.9682691]
[1751721562368,6.7484,148.15,148.13,2.9682691]
[1751721562668,6.7487,148.14,148.13,2.9682691]
[1751721563771,6.7487,148.14,148.11,245.7698]
[1751721564072,6.7487,148.14,148.13,2.9682691]
[1751721570178,12.48512174,148.14,148.13,2.9682691]
[1751721570877,12.48512174,148.14,148.12,2.9682691]
[1751721571176,6.7487,148.14,148.12,2.9682691]
[1751721571877,4.96288945,148.13,148.12,2.9682691]
[1751721572079,12.16040059,148.13,148.12,2.9682691]
[1751721572480,12.16047115,148.13,148.12,2.9682691]
[1751721577884,12.16047115,148.13,148.12,9.7178691]
[1751721578589,12.1632297,148.13,148.12,9.7178691]
[1751721580696,12.16384195,148.13,148.12,9.7178691]
[1751721581894,12.16429372,148.13,148.12,9.7178691]
[1751721584694,12.16429372,148.13,148.12,202.9178691]
[1751721585191,7.49247945,148.13,148.12,202.9178691]
[1751721585496,7.49247945,148.13,148.12,202.91695376]
[1751721585497,12.1649697,148.13,148.12,202.91695376]
[1751721586799,12.1649697,148.13,148.12,202.91680176]
[1751721588300,7.20028565,148.13,148.12,202.91680176]
[1751721588501,12.16608473,148.13,148.12,202.91680176]
[1751721588699,17.91153766,148.13,148.12,202.91680176]
[1751721593401,17.91153766,148.13,148.12,202.91665629]
[1751721594803,6.30468177,148.17,148.12,196.16705629]
[1751721595107,13.05178177,148.18,148.16,2.96705629]
[1751721595307,13.05178177,148.18,148.17,196.16705629]
[1751721597402,6.7471,148.18,148.17,196.16705629]
[1751721597803,6.7471,148.18,148.17,193.2]
[1751721598004,9.27137668,148.18,148.13,2.96669491]
[1751721598205,9.27137668,148.17,148.14,193.28]
[1751721598903,2.96669491,148.17,148.14,193.28]
[1751721599505,6.7482,148.15,148.14,193.28]
[1751721604112,6.748,148.16,148.14,196.24669491]
[1751721604414,7.57699491,148.18,148.14,196.24669491]
[1751721606518,6.7482,148.15,148.14,196.24669491]
[1751721606818,18.68463905,148.15,148.14,196.24669491]
[1751721609520,18.68819782,148.15,148.14,196.24669491]
[1751721609718,13.8230468,148.15,148.14,196.24669491]
[1751721611722,18.70084819,148.15,148.14,196.24669491]
[1751721613122,24.3931674,148.15,148.14,196.24669491]
[1751721613420,16.23446355,148.15,148.14,196.24669491]
[1751721613622,24.3917047,148.15,148.14,196.24669491]
[1751721616323,24.40291398,148.15,148.14,196.24669491]
[1751721616824,17.65471398,148.15,148.14,196.24669491]
[1751721618324,17.65509002,148.15,148.14,196.24669491]
[1751721619628,17.65601392,148.15,148.14,196.24669491]
[1751721620628,24.40421392,148.15,148.14,196.24669491]
[1751721620926,24.40421392,148.15,148.14,193.28]
[1751721622824,24.40623967,148.15,148.14,193.28]
[1751721625132,24.40623967,148.15,148.14,193.28]
[1751721625433,17.65803967,148.15,148.14,196.24669491]
[1751721626033,17.65821957,148.15,148.14,196.24669491]
[1751721626730,13.03729907,148.15,148.14,202.99539491]
[1751721626931,17.65867528,148.15,148.14,202.99539491]
[1751721629841,17.65886702,148.15,148.14,202.99539491]
[1751721631643,11.96650365,148.15,148.14,202.99539491]
[1751721637148,2.46583437,148.15,148.14,202.99539491]
[1751721637448,6.7471,148.18,148.15,6.7479]
[1751721637648,17.70136524,148.17,148.15,9.71459491]
[1751721637847,17.70136524,148.16,148.15,9.71459491]
[1751721638853,10.58679131,148.16,148.15,9.71459491]
[1751721639148,6.31221904,148.2,148.17,6.747]
[1751721639349,13.05841904,148.2,148.19,2.96669491]
[1751721643947,6.31221904,148.2,148.19,2.96669491]
[1751721644453,6.31221904,148.21,148.19,9.71309491]
[1751721644645,6.31221904,148.21,148.2,2.96669491]
[1751721645155,13.05781904,148.21,148.2,2.96669491]
[1751721645550,6.7456,148.21,148.2,2.96669491]
[1751721647547,6.7453,148.22,148.2,2.96669491]
[1751721648548,6.7455,148.21,148.2,2.96669491]
[1751721654854,6.7453,148.22,148.2,2.96669491]
[1751721655357,77.18290469,148.24,148.2,2.96669491]
[1751721656359,6.7454,148.22,148.2,2.96669491]
[1751721656957,6.7455,148.21,148.2,2.96669491]
[1751721658759,74.21620978,148.24,148.2,9.71269491]
[1751721659062,74.21620978,148.24,148.2,2.96669491]
[1751721659256,2.96669491,148.23,148.16,45.6]
[1751721659560,2.96669491,148.23,148.19,2.96669491]
[1751721660563,6.7459,148.21,148.19,2.96669491]
[1751721660761,74.21620978,148.24,148.19,2.96669491]
[1751721661059,2.96669491,148.23,148.18,9.71329491]
[1751721661557,2.96669491,148.23,148.18,6.7466]
[1751721661758,2.96669491,148.23,148.18,2.96669491]